bitfinex/quotes_BTCUSD_20230109
["timestamp","ask_amount","ask_price","bid_price","bid_amount"]
[1673249943046,1.3595,17218.0,17217.0,0.00462041]
[1673249943307,3.97704842,17218.0,17217.0,0.00462041]
[1673249944043,4.22704842,17218.0,17217.0,0.00462041]
[1673249945066,5.08540373,17218.0,17217.0,0.00462041]
[1673249945782,4.22704842,17218.0,17217.0,0.00462041]
[1673249946028,5.08540223,17218.0,17217.0,0.00462041]
[1673249946275,5.66848538,17218.0,17217.0,0.00462041]
[1673249946771,4.85413157,17218.0,17217.0,0.01662041]
[1673249947018,4.91227989,17218.0,17217.0,0.01662041]
[1673249948281,5.20271989,17218.0,17217.0,0.01662041]
[1673249951792,4.61963674,17218.0,17217.0,0.01662041]
[1673249954084,4.32919674,17218.0,17217.0,0.01662041]
[1673249954334,4.61963674,17218.0,17217.0,0.01662041]
[1673249959602,4.57563674,17218.0,17217.0,0.00462041]
[1673249959875,4.61963674,17218.0,17217.0,0.01662041]
[1673249960388,5.0484742,17218.0,17217.0,0.01662041]
[1673249963447,4.61963674,17218.0,17217.0,0.01662041]
[1673249967434,4.61963674,17218.0,17217.0,0.01652455]
[1673249971177,5.47823439,17218.0,17217.0,0.01652455]
[1673249972255,4.61963674,17218.0,17217.0,0.01652455]
[1673249980068,4.61964674,17218.0,17217.0,0.01652455]
[1673249981275,4.70074198,17218.0,17217.0,0.01652455]
[1673249982241,5.55931916,17218.0,17217.0,0.01652455]
[1673249984673,4.70074198,17218.0,17217.0,0.01652455]
[1673249984912,4.61964674,17218.0,17217.0,0.01652455]
[1673249990011,4.61964674,17218.0,17217.0,0.01645351]
[1673249992129,4.95008282,17218.0,17217.0,0.01645351]
[1673250001858,4.94559082,17218.0,17217.0,0.01645351]
[1673250002597,1.73194649,17217.0,17216.0,0.00462107]
[1673250002846,4.67743676,17217.0,17216.0,0.00462107]
[1673250003099,4.34706912,17217.0,17216.0,0.00462107]
[1673250003607,5.27050786,17217.0,17216.0,0.00462107]
[1673250003852,5.32550786,17217.0,17216.0,0.01562107]
[1673250007895,5.65594394,17217.0,17216.0,0.01562107]
[1673250008456,5.32550786,17217.0,17216.0,0.01562107]
[1673250008706,5.65587592,17217.0,17216.0,0.01562107]
[1673250010718,5.32550786,17217.0,17216.0,0.01562107]
[1673250011472,5.65383363,17217.0,17216.0,0.01562107]
[1673250011715,5.30260786,17217.0,17216.0,0.01562107]
[1673250011954,5.63093236,17217.0,17216.0,0.01562107]
[1673250013985,5.30260786,17217.0,17216.0,0.01562107]
[1673250016757,5.63100256,17217.0,17216.0,0.01562107]
[1673250017276,5.30260786,17217.0,17216.0,0.01562107]
[1673250017530,5.63096486,17217.0,17216.0,0.01562107]
[1673250018551,5.63096619,17217.0,17216.0,0.01562107]
[1673250018820,5.36623643,17217.0,17216.0,0.01562107]
[1673250019072,5.42438475,17217.0,17216.0,0.01562107]
[1673250019328,4.83050762,17217.0,17216.0,0.01562107]
[1673250022596,5.68889463,17217.0,17216.0,0.01562107]
[1673250022850,5.3605363,17217.0,17216.0,0.01562107]
[1673250023353,5.3376363,17217.0,17216.0,0.01562107]
[1673250023854,5.66609553,17217.0,17216.0,0.01562107]
[1673250024833,5.3376363,17217.0,17216.0,0.01562107]
[1673250026580,5.66616314,17217.0,17216.0,0.01562107]
[1673250026827,5.3376363,17217.0,17216.0,0.01562107]
[1673250027066,5.66616314,17217.0,17216.0,0.01562107]
[1673250027314,5.66612905,17217.0,17216.0,0.01562107]
[1673250027570,5.3376363,17217.0,17216.0,0.01562107]
[1673250027825,5.66609307,17217.0,17216.0,0.01562107]
[1673250030761,5.3376363,17217.0,17216.0,0.01562107]
[1673250031023,4.97948798,17217.0,17216.0,0.01562107]
[1673250031281,3.72110097,17217.0,17216.0,0.01562107]
[1673250031503,3.43472723,17217.0,17216.0,0.01562107]
[1673250034704,3.32192375,17217.0,17216.0,0.01562107]
[1673250035210,3.62192375,17217.0,17216.0,0.01562107]
[1673250045477,3.32192375,17217.0,17216.0,0.01562107]
[1673250045725,3.62192375,17217.0,17216.0,0.01562107]
[1673250046074,3.49912027,17217.0,17216.0,0.01562107]
[1673250050863,3.19912027,17217.0,17216.0,0.01562107]
[1673250055322,3.78707099,17217.0,17216.0,0.01562107]
[1673250055571,3.78707099,17217.0,17216.0,0.14011154]
[1673250057070,3.19912027,17217.0,17216.0,0.14011154]
[1673250057322,3.78704479,17217.0,17216.0,0.14011154]
[1673250057595,3.634186,17217.0,17216.0,0.14011154]
[1673250057855,3.63418648,17217.0,17216.0,0.14011154]
[1673250058103,3.0462623,17217.0,17216.0,0.14011154]
[1673250058607,3.6341822,17217.0,17216.0,0.14011154]
[1673250059105,3.63418304,17217.0,17216.0,0.14011154]
[1673250059349,3.63418301,17217.0,17216.0,0.14011154]
[1673250059679,3.0462623,17217.0,17216.0,0.14011154]
[1673250059983,3.6341798,17217.0,17216.0,0.14011154]
[1673250062457,3.0462623,17217.0,17216.0,0.14011154]
[1673250062704,3.63433029,17217.0,17216.0,0.14011154]
[1673250067727,3.63443651,17217.0,17216.0,0.14011154]
[1673250068512,3.0462623,17217.0,17216.0,0.14011154]
[1673250068989,2.9552878,17217.0,17216.0,0.14011154]
[1673250073992,3.2552878,17217.0,17216.0,0.14011154]
[1673250074722,2.9552878,17217.0,17216.0,0.14011154]
[1673250076384,3.2552878,17217.0,17216.0,0.14011154]
[1673250080556,3.1442433,17217.0,17216.0,0.14011154]
[1673250091808,3.03145533,17217.0,17216.0,0.14011154]
[1673250099414,2.73145533,17217.0,17216.0,0.14011154]
[1673250099661,2.73145533,17217.0,17216.0,0.19819704]
[1673250101903,3.31990988,17217.0,17216.0,0.19819704]
[1673250102391,3.30790688,17217.0,17216.0,0.19819704]
[1673250103396,3.18511891,17217.0,17216.0,0.19819704]
[1673250104374,3.18511891,17217.0,17216.0,0.19885706]
[1673250104673,3.18511891,17217.0,17216.0,0.19819704]
[1673250105185,2.59666436,17217.0,17216.0,0.19819704]
[1673250105440,2.89666436,17217.0,17216.0,0.19819704]
[1673250109429,2.59666436,17217.0,17216.0,0.19819704]
[1673250109722,2.89666436,17217.0,17216.0,0.19819704]
[1673250111011,2.59666436,17217.0,17216.0,0.19819704]
[1673250111247,2.89666436,17217.0,17216.0,0.19819704]
[1673250111491,2.59666436,17217.0,17216.0,0.19819704]
[1673250112975,2.89666436,17217.0,17216.0,0.19819704]
[1673250113220,2.59666436,17217.0,17216.0,0.19819704]
[1673250114714,2.48388605,17217.0,17216.0,0.19819704]
[1673250123225,2.78388605,17217.0,17216.0,0.19819704]
[1673250124711,2.48388605,17217.0,17216.0,0.19819704]
[1673250125207,3.0723088,17217.0,17216.0,0.19819704]
[1673250126200,2.96127397,17217.0,17216.0,0.19819704]
[1673250126954,2.96127397,17217.0,17216.0,0.19885706]
[1673250129190,2.96127397,17217.0,17216.0,0.19819704]
[1673250136775,3.26127397,17217.0,17216.0,0.19819704]
[1673250137022,2.67285122,17217.0,17216.0,0.19819704]
[1673250137744,2.44858074,17217.0,17216.0,0.19819704]
[1673250138248,2.14858074,17217.0,17216.0,0.19819704]
[1673250138995,2.7369342,17217.0,17216.0,0.19819704]
[1673250141507,2.73694394,17217.0,17216.0,0.19819704]
[1673250143522,2.14858074,17217.0,17216.0,0.19819704]
[1673250143762,2.44858074,17217.0,17216.0,0.19819704]
[1673250144007,2.14858074,17217.0,17216.0,0.19819704]
[1673250144496,2.73694267,17217.0,17216.0,0.19819704]
[1673250149203,2.58409436,17217.0,17216.0,0.19819704]
[1673250151177,2.59259436,17217.0,17216.0,0.19819704]
[1673250153491,2.89259436,17217.0,17216.0,0.19819704]
[1673250153751,2.00423243,17217.0,17216.0,0.19819704]
[1673250154004,2.30423243,17217.0,17216.0,0.19819704]
[1673250154258,2.00423243,17217.0,17216.0,0.19819704]
[1673250154516,2.30423243,17217.0,17216.0,0.19819704]
[1673250154758,2.00423243,17217.0,17216.0,0.19819704]
[1673250155010,2.01183205,17217.0,17216.0,0.19819704]
[1673250157976,1.57535936,17217.0,17216.0,0.19819704]
[1673250158711,0.98693874,17217.0,17216.0,0.19819704]
[1673250158957,1.57535936,17217.0,17216.0,0.19819704]
[1673250160921,0.3135,17217.0,17216.0,1.60860472]
[1673250161228,0.15215169,17217.0,17216.0,1.94540472]
[1673250161476,0.055,17217.0,17216.0,2.30891272]
[1673250162238,0.52295028,17218.0,17216.0,2.29791272]
[1673250162481,0.0085,17217.0,17216.0,1.76555686]
[1673250162756,0.0085,17217.0,17216.0,1.93635686]
[1673250163007,0.0085,17217.0,17216.0,2.29786486]
[1673250163257,0.53145028,17217.0,17216.0,2.30686486]
[1673250163506,0.0085,17217.0,17216.0,2.29786486]
[1673250163753,0.0555,17217.0,17216.0,2.29986486]
[1673250164734,0.0555,17217.0,17216.0,2.30052488]
[1673250166657,0.0085,17217.0,17216.0,2.29852488]
[1673250166884,0.0535,17217.0,17216.0,2.30052488]
[1673250167857,0.57645028,17217.0,17216.0,1.93632186]
[1673250168103,0.57645028,17217.0,17216.0,1.28099588]
[1673250168353,0.57645028,17217.0,17216.0,1.59955466]
[1673250169104,0.53145028,17217.0,17216.0,1.59755466]
[1673250169351,0.0535,17217.0,17216.0,1.93415466]
[1673250169593,0.48887449,17217.0,17216.0,1.97910388]
[1673250169838,0.0535,17217.0,17216.0,2.29762758]
[1673250170119,0.0085,17217.0,17216.0,2.29562758]
[1673250170351,0.0535,17217.0,17216.0,2.29762758]
[1673250171320,0.0085,17217.0,17216.0,2.29562758]
[1673250171572,0.48883166,17217.0,17216.0,2.29762758]
[1673250171814,0.0085,17217.0,17216.0,2.29562758]
[1673250172063,0.44383038,17217.0,17216.0,2.29762758]
[1673250172303,0.48883038,17217.0,17216.0,2.29762758]
[1673250172559,0.37733535,17217.0,17216.0,2.29562758]
[1673250172816,0.42233535,17217.0,17216.0,2.2982876]
[1673250173056,0.37733535,17217.0,17216.0,2.2962876]
[1673250173310,0.42233535,17217.0,17216.0,2.2982876]
[1673250173840,0.42233535,17217.0,17216.0,1.9636876]
[1673250174089,0.42233535,17217.0,17216.0,1.6001796]
[1673250174307,0.37733535,17217.0,17216.0,1.5981796]
[1673250174520,0.42233535,17217.0,17216.0,1.6001796]
[1673250174783,0.37733535,17217.0,17216.0,1.5981796]
[1673250175035,0.42233535,17217.0,17216.0,1.6001796]
[1673250175249,0.37733535,17217.0,17216.0,1.5981796]
[1673250175503,0.42933535,17217.0,17216.0,1.6071796]
[1673250175749,0.37733535,17217.0,17216.0,1.5981796]
[1673250175989,0.42233535,17217.0,17216.0,1.6001796]
[1673250176241,0.42233535,17217.0,17216.0,1.5981796]
[1673250177246,0.47433535,17217.0,17216.0,1.6071796]
[1673250177462,0.42933535,17217.0,17216.0,1.5981796]
[1673250177699,0.47433535,17217.0,17216.0,1.6001796]
[1673250178196,0.47433535,17217.0,17216.0,1.2001796]
[1673250178443,0.1055,17217.0,17216.0,0.8816559]
[1673250180451,0.62845028,17217.0,17216.0,0.8816559]
[1673250181979,0.1055,17217.0,17216.0,0.8816559]
[1673250182230,0.62845028,17217.0,17216.0,0.8816559]
[1673250183236,0.1055,17217.0,17216.0,0.8816559]
[1673250184043,0.51579028,17218.0,17216.0,0.8816559]
[1673250185230,0.51579028,17218.0,17216.0,0.8796559]
[1673250185932,0.0085,17217.0,17216.0,0.8796559]
[1673250187373,0.0085,17218.0,17216.0,0.8856559]
[1673250187681,0.4085,17218.0,17216.0,0.8856559]
[1673250188204,0.4085,17218.0,17216.0,0.8796559]
[1673250188458,0.4085,17218.0,17216.0,0.8856559]
[1673250189691,0.0085,17218.0,17216.0,0.8856559]
[1673250189952,0.52261993,17217.0,17216.0,0.8796559]
[1673250190216,0.53111993,17217.0,17216.0,0.8796559]
[1673250191226,0.53111993,17217.0,17216.0,0.8856559]
[1673250193223,0.53111993,17217.0,17216.0,0.8796559]
[1673250194198,0.53111993,17217.0,17216.0,0.87899588]
[1673250195459,0.39786794,17217.0,17216.0,0.87899588]
[1673250197724,0.39786794,17217.0,17216.0,0.8796559]
[1673250205480,0.39786794,17217.0,17216.0,0.87899588]
[1673250206979,0.30626797,17217.0,17216.0,0.87899588]
[1673250215411,0.0085,17217.0,17216.0,0.87899588]
[1673250216908,0.90423062,17217.0,17216.0,0.18719704]
[1673250218419,1.80609194,17217.0,17216.0,0.18719704]
[1673250218680,2.65629262,17217.0,17216.0,0.18719704]
[1673250218923,2.36587262,17217.0,17216.0,0.18719704]
[1673250219216,2.00648687,17217.0,17216.0,0.18719704]
[1673250219430,2.32454339,17217.0,17216.0,0.18719704]
[1673250219942,2.91285592,17217.0,17216.0,0.18719704]
[1673250220718,2.5918954,17217.0,17216.0,0.18719704]
[1673250221459,2.6003954,17217.0,17216.0,0.18719704]
[1673250222207,2.92135592,17217.0,17216.0,0.18719704]
[1673250222459,2.6003954,17217.0,17216.0,0.18719704]
[1673250223239,2.92135592,17217.0,17216.0,0.18719704]
[1673250223981,2.6003954,17217.0,17216.0,0.18719704]
[1673250226731,2.92135592,17217.0,17216.0,0.18719704]
[1673250226974,2.6003954,17217.0,17216.0,0.18719704]
[1673250228798,2.92135592,17217.0,17216.0,0.18719704]
[1673250229318,2.6003954,17217.0,17216.0,0.18719704]
[1673250230029,2.2003954,17217.0,17216.0,0.18719704]
[1673250231767,2.86975592,17217.0,17216.0,0.18719704]
[1673250233027,2.5487954,17217.0,17216.0,0.18719704]
[1673250244084,2.5487954,17217.0,17216.0,0.18708968]
[1673250245579,2.40685453,17217.0,17216.0,0.18708968]
[1673250245826,1.518542,17217.0,17216.0,0.18708968]
[1673250246043,2.10685453,17217.0,17216.0,0.18708968]
[1673250247270,2.40685453,17217.0,17216.0,0.18708968]
[1673250247768,2.10685453,17217.0,17216.0,0.18708968]
[1673250248017,2.40685453,17217.0,17216.0,0.18708968]
[1673250249514,2.10685453,17217.0,17216.0,0.18708968]
[1673250251301,2.40685453,17217.0,17216.0,0.18708968]
[1673250251556,2.10685453,17217.0,17216.0,0.18708968]
[1673250253806,2.40685453,17217.0,17216.0,0.18708968]
[1673250256304,1.818542,17217.0,17216.0,0.18708968]
[1673250256551,2.40714343,17217.0,17216.0,0.18708968]
[1673250256815,2.40714246,17217.0,17216.0,0.18708968]
[1673250259010,1.818542,17217.0,17216.0,0.18708968]
[1673250259785,2.40794286,17217.0,17216.0,0.18708968]
[1673250260006,3.01932338,17217.0,17216.0,0.18708968]
[1673250264736,3.30546513,17217.0,17216.0,0.18708968]
[1673250264975,3.01932338,17217.0,17216.0,0.18708968]
[1673250265771,3.01932338,17217.0,17216.0,0.18898968]
[1673250266770,3.50517612,17217.0,17216.0,0.18898968]
[1673250267024,3.79129718,17217.0,17216.0,0.18898968]
[1673250267300,3.50517612,17217.0,17216.0,0.18887879]
[1673250268300,3.01932338,17217.0,17216.0,0.18887879]
[1673250269078,2.72890338,17217.0,17216.0,0.18887879]
[1673250274099,3.01931338,17217.0,17216.0,0.18887879]
[1673250275858,2.40794286,17217.0,17216.0,0.18887879]
[1673250276126,2.9960055,17217.0,17216.0,0.18887879]
[1673250290301,2.9960055,17217.0,17216.0,0.18879331]
[1673250294274,2.6960055,17217.0,17216.0,0.18879331]
[1673250294996,2.9960055,17217.0,17216.0,0.18879331]
[1673250295500,2.6960055,17217.0,17216.0,0.18879331]
[1673250295754,2.9960055,17217.0,17216.0,0.18879331]
[1673250296007,2.6960055,17217.0,17216.0,0.18879331]
[1673250300493,2.9960055,17217.0,17216.0,0.18879331]
[1673250303027,3.31696602,17217.0,17216.0,0.18879331]
[1673250303278,2.9960055,17217.0,17216.0,0.18879331]
[1673250307324,2.6960055,17217.0,17216.0,0.18879331]
[1673250307583,2.9960055,17217.0,17216.0,0.18879331]
[1673250310871,2.9910055,17217.0,17216.0,0.18879331]
[1673250311617,2.6910055,17217.0,17216.0,0.18879331]
[1673250312084,2.9910055,17217.0,17216.0,0.18879331]
[1673250315264,2.40294286,17217.0,17216.0,0.18879331]
[1673250316933,2.9915721,17217.0,17216.0,0.18879331]
[1673250317150,2.40294286,17217.0,17216.0,0.18879331]
[1673250318408,2.99157412,17217.0,17216.0,0.18879331]
[1673250318898,2.69157412,17217.0,17216.0,0.18879331]
[1673250319392,2.40294286,17217.0,17216.0,0.18879331]
[1673250320340,0.58861901,17217.0,17216.0,0.18879331]
[1673250320589,0.4,17218.0,17216.0,0.18879331]
[1673250320590,0.58861901,17218.0,17216.0,0.87456508]
[1673250320837,0.52317567,17217.0,17216.0,0.87456508]
[1673250321829,0.53169051,17217.0,17216.0,0.87456508]
[1673250323090,0.40511688,17217.0,17216.0,0.87456508]
[1673250325111,2.41246819,17219.0,17216.0,0.87456508]
[1673250325357,0.3085,17218.0,17216.0,1.16695322]
[1673250325606,0.0085,17218.0,17216.0,0.87456508]
[1673250326607,0.0085,17218.0,17216.0,0.88056508]
[1673250328381,0.0085,17218.0,17216.0,0.86780914]
[1673250329112,0.53108564,17218.0,17216.0,0.86780914]
[1673250329600,0.4354718,17217.0,17216.0,0.86780914]
[1673250329839,0.4439718,17217.0,17216.0,0.86780914]
[1673250330838,0.4439718,17217.0,17216.0,0.86180914]
[1673250331866,0.4439718,17217.0,17216.0,0.89991578]
[1673250332369,0.79222013,17217.0,17216.0,0.89991578]
[1673250332807,0.79221882,17217.0,17216.0,0.89991578]
[1673250333165,0.4439718,17217.0,17216.0,0.89991578]
[1673250334775,0.36643817,17217.0,17216.0,0.89991578]
[1673250336133,0.71462054,17217.0,17216.0,0.89991578]
[1673250336496,0.36643817,17217.0,17216.0,0.89991578]
[1673250337746,0.0085,17217.0,17216.0,0.21414401]
[1673250341743,0.44372121,17217.0,17216.0,0.21414401]
[1673250342236,0.0085,17217.0,17216.0,0.21414401]
[1673250344699,0.44375774,17217.0,17216.0,0.21414401]
[1673250346165,0.36617551,17217.0,17216.0,0.21414401]
[1673250346411,1.290063,17218.0,17216.0,0.21414401]
[1673250346944,1.090063,17218.0,17216.0,0.21414401]
[1673250347678,1.090063,17218.0,17216.0,0.22014401]
[1673250348184,0.0085,17217.0,17216.0,0.22014401]
[1673250349377,0.0085,17217.0,17216.0,0.21414401]
[1673250354352,0.53108564,17217.0,17216.0,0.21414401]
[1673250355635,0.53108564,17217.0,17216.0,0.09809214]
[1673250357661,0.46120919,17217.0,17216.0,0.09809214]
[1673250367576,0.0085,17217.0,17216.0,0.09809214]
[1673250369024,0.2034917,17217.0,17216.0,0.09809214]
[1673250369485,1.90097655,17218.0,17216.0,0.09809214]
[1673250370247,0.85270919,17217.0,17216.0,0.09809214]
[1673250370738,0.45270919,17217.0,17216.0,0.09809214]
[1673250371481,0.46120919,17217.0,17216.0,0.09809214]
[1673250375636,0.0085,17217.0,17216.0,0.09809214]
[1673250375878,0.46120919,17217.0,17216.0,0.09809214]
[1673250380312,0.0085,17217.0,17216.0,0.09809214]
[1673250380578,0.46120919,17217.0,17216.0,0.09809214]
[1673250381821,0.46120919,17217.0,17216.0,0.21049765]
[1673250382560,0.34412997,17217.0,17216.0,0.21049765]
[1673250384826,0.35262997,17217.0,17216.0,0.21049765]
[1673250387300,0.0085,17217.0,17216.0,0.21049765]
[1673250388621,0.53151934,17217.0,17216.0,0.21049765]
[1673250393292,0.0085,17217.0,17216.0,0.21049765]
[1673250394067,0.99429896,17218.0,17217.0,0.4]
[1673250394310,0.99429896,17218.0,17216.0,0.49833296]
[1673250394546,0.99429896,17218.0,17216.0,0.21049765]
[1673250395395,0.99429896,17218.0,17216.0,0.21649765]
[1673250395998,0.0085,17217.0,17216.0,0.21649765]
[1673250397304,0.0085,17217.0,17216.0,0.21049765]
[1673250397527,0.53151934,17217.0,17216.0,0.21049765]
[1673250397786,0.0085,17217.0,17216.0,0.81783876]
[1673250400327,0.53151934,17217.0,17216.0,0.81783876]
[1673250400696,0.0085,17217.0,17216.0,0.81783876]
[1673250404814,0.78460266,17217.0,17216.0,2.02710477]
[1673250405331,0.17434947,17217.0,17216.0,2.02710477]
[1673250405595,0.25,17217.0,17216.0,1.44275241]
[1673250405847,0.25,17217.0,17216.0,1.84275241]
[1673250406103,0.25,17217.0,17216.0,2.4539483]
[1673250406873,0.25,17217.0,17216.0,2.5969483]
[1673250408360,0.25,17217.0,17216.0,2.5963483]
[1673250408654,0.25,17217.0,17216.0,3.1772033]
[1673250409448,0.25,17217.0,17216.0,3.17699891]
[1673250410471,0.25,17217.0,17216.0,2.88931154]
[1673250410718,0.61022993,17218.0,17217.0,0.4]
[1673250410974,0.61022993,17218.0,17217.0,0.763508]
[1673250411244,1.05422798,17218.0,17217.0,0.363508]
[1673250411533,0.79310266,17218.0,17216.0,1.94494854]
[1673250411782,0.41026239,17217.0,17216.0,1.22109354]
[1673250412004,0.93374266,17217.0,17216.0,1.10868803]
[1673250412263,0.93374266,17217.0,17216.0,0.70868803]
[1673250413058,0.58503693,17217.0,17216.0,0.70868803]
[1673250413316,0.93322782,17217.0,17216.0,0.70868803]
[1673250413567,0.93323219,17217.0,17216.0,0.70868803]
[1673250414069,0.79259219,17217.0,17216.0,0.70868803]
[1673250415328,0.79259219,17217.0,17216.0,0.09749214]
[1673250415596,0.44439693,17217.0,17216.0,0.09749214]
[1673250416108,0.79259209,17217.0,17216.0,0.09749214]
[1673250416609,0.44439693,17217.0,17216.0,0.09749214]
[1673250416859,0.79258902,17217.0,17216.0,0.09749214]
[1673250417104,0.61782862,17217.0,17216.0,0.09749214]
[1673250417602,0.35669209,17217.0,17216.0,0.09749214]
[1673250418096,0.0085,17217.0,17216.0,0.09749214]
[1673250420083,0.35670067,17217.0,17216.0,0.09749214]
[1673250421110,0.61784261,17217.0,17216.0,0.09749214]
[1673250421355,0.35670067,17217.0,17216.0,0.09749214]
[1673250421852,0.35668578,17217.0,17216.0,0.09749214]
[1673250422104,0.0085,17217.0,17216.0,0.09749214]
[1673250422353,0.35668646,17217.0,17216.0,0.09749214]
[1673250424108,0.7919211,17217.0,17216.0,0.09749214]
[1673250428165,0.6178332,17217.0,17216.0,0.66828705]
[1673250428400,0.26337535,17217.0,17216.0,0.66828705]
[1673250428645,0.27187535,17217.0,17216.0,0.66828705]
[1673250429163,0.27187535,17217.0,17216.0,0.66228705]
[1673250429658,0.18259466,17217.0,17216.0,0.66228705]
[1673250429902,0.18259466,17217.0,17216.0,0.73528705]
[1673250430149,0.18259466,17217.0,17216.0,0.66228705]
[1673250430396,0.18259466,17217.0,17216.0,0.66828705]
[1673250431899,0.18259466,17217.0,17216.0,0.66228705]
[1673250432167,0.18259466,17217.0,17216.0,0.73528705]
[1673250432413,0.18259466,17217.0,17216.0,1.09879505]
[1673250433381,0.18259466,17217.0,17216.0,1.67965005]
[1673250436165,0.17409466,17217.0,17216.0,2.54968955]
[1673250436433,0.17409466,17218.0,17217.0,0.4]
[1673250436736,0.17409466,17218.0,17217.0,2.21433489]
[1673250437712,0.82339951,17219.0,17217.0,2.21433489]
[1673250438012,0.64930485,17219.0,17218.0,0.363508]
[1673250438229,0.64930485,17219.0,17218.0,0.944295]
[1673250438230,0.47517744,17219.0,17218.0,0.944295]
[1673250438453,0.48367744,17219.0,17218.0,0.944295]
[1673250439707,0.4113097,17219.0,17218.0,0.950295]
[1673250439943,0.58543711,17219.0,17218.0,0.950295]
[1673250440925,0.41129979,17219.0,17218.0,0.950295]
[1673250445953,0.41129979,17219.0,17218.0,0.586787]
[1673250446207,0.75948625,17219.0,17218.0,0.580787]
[1673250446468,0.41129979,17219.0,17218.0,0.580787]
[1673250446956,0.41129979,17219.0,17218.0,0.586787]
[1673250448427,0.41129979,17219.0,17218.0,0.950295]
[1673250450913,0.18254914,17219.0,17218.0,0.950295]
[1673250451169,0.08734916,17219.0,17218.0,0.950295]
[1673250451420,0.08734916,17219.0,17218.0,2.5077123]
[1673250451667,0.57693711,17220.0,17218.0,2.5077123]
[1673250451668,0.22875065,17220.0,17218.0,2.5077123]
[1673250451925,0.22875065,17220.0,17219.0,0.363508]
[1673250452177,0.22875065,17220.0,17219.0,1.04977768]
[1673250452664,0.22875065,17220.0,17219.0,1.04970855]
[1673250452909,0.22875065,17220.0,17219.0,1.350261]
[1673250453164,0.0085,17220.0,17219.0,1.63646383]
[1673250453420,0.0085,17220.0,17219.0,1.350261]
[1673250453665,0.0085,17220.0,17219.0,1.6364638]
[1673250453911,0.23725065,17220.0,17219.0,1.350261]
[1673250454159,0.0085,17220.0,17219.0,0.986753]
[1673250454906,0.23725065,17220.0,17219.0,0.986753]
[1673250455163,0.0085,17220.0,17219.0,0.986753]
[1673250455406,0.23725065,17220.0,17219.0,0.986753]
[1673250456620,0.22875065,17220.0,17219.0,0.986753]
[1673250458673,0.22875065,17220.0,17219.0,1.350261]
[1673250459173,0.22875065,17220.0,17219.0,0.586753]
[1673250459385,0.57693711,17220.0,17219.0,0.586753]
[1673250459924,1.04442982,17220.0,17219.0,0.586753]
[1673250460181,0.7834211,17220.0,17219.0,0.586753]
[1673250460441,0.7834211,17220.0,17219.0,0.006]
[1673250461170,0.60920717,17220.0,17219.0,0.006]
[1673250461707,0.7834211,17220.0,17219.0,0.006]
[1673250462705,0.58612845,17220.0,17219.0,0.006]
[1673250463204,0.43523464,17220.0,17219.0,0.006]
[1673250464713,0.43523464,17220.0,17219.0,0.406]
[1673250467461,0.44373464,17220.0,17219.0,0.006]
[1673250467951,0.0085,17220.0,17219.0,0.006]
[1673250468205,0.0085,17220.0,17218.0,1.27120982]
[1673250468440,0.0085,17220.0,17219.0,0.006]
[1673250468724,0.0085,17220.0,17218.0,1.27120982]
[1673250468974,0.43544875,17219.0,17218.0,1.27120982]
[1673250469760,0.43544875,17219.0,17218.0,0.69044982]
[1673250471290,0.43544875,17219.0,17218.0,0.69644982]
[1673250473545,0.43544875,17219.0,17218.0,1.01066296]
[1673250473805,0.43544875,17219.0,17218.0,0.69644982]
[1673250474060,0.33083388,17219.0,17218.0,0.69644982]
[1673250475513,0.0085,17219.0,17218.0,0.69644982]
[1673250481139,0.44406967,17219.0,17218.0,0.006]
[1673250481401,0.52618136,17219.0,17218.0,0.006]
[1673250481653,1.0492007,17219.0,17218.0,0.006]
[1673250481966,1.2492007,17219.0,17218.0,0.006]
[1673250482197,1.2492007,17219.0,17216.0,0.45873856]
[1673250482454,1.2492007,17219.0,17216.0,0.14504902]
[1673250482455,0.78406614,17217.0,17216.0,0.14504902]
[1673250482961,0.79256614,17217.0,17216.0,0.09749214]
[1673250484226,0.4440923,17217.0,17216.0,0.09749214]
[1673250484721,0.4440923,17217.0,17216.0,0.17049214]
[1673250484972,0.4440923,17217.0,17216.0,0.09749214]
[1673250485219,0.4440923,17217.0,17216.0,0.10349214]
[1673250485474,0.51277179,17217.0,17216.0,0.09749214]
[1673250489293,0.61785431,17217.0,17216.0,0.09749214]
[1673250490309,0.61785431,17217.0,17216.0,0.09549214]
[1673250490559,0.35676852,17217.0,17216.0,0.09549214]
[1673250491302,0.61781779,17217.0,17216.0,0.09549214]
[1673250492307,0.35676852,17217.0,17216.0,0.09549214]
[1673250492569,0.79187091,17217.0,17216.0,0.09549214]
[1673250492824,0.61782979,17217.0,17216.0,0.09549214]
[1673250496814,0.32765658,17217.0,17216.0,0.09549214]
[1673250498274,0.76275897,17217.0,17216.0,0.09549214]
[1673250498528,0.5016977,17217.0,17216.0,0.09549214]
[1673250498779,0.5101977,17217.0,17216.0,0.09549214]
[1673250502964,0.5101977,17217.0,17216.0,0.19151916]
[1673250507812,0.7713954,17217.0,17216.0,0.19151916]
[1673250508063,0.05724334,17217.0,17216.0,0.19151916]
[1673250508574,0.23138356,17217.0,17216.0,0.19151916]
[1673250508822,0.23138356,17217.0,17216.0,0.87072296]
[1673250509085,0.13138356,17217.0,17216.0,0.87072296]
[1673250510334,0.13988356,17217.0,17216.0,0.87072296]
[1673250510836,0.13988356,17217.0,17216.0,0.87672296]
[1673250511105,0.13988356,17217.0,17216.0,0.87072296]
[1673250511348,0.13988356,17217.0,17216.0,0.94372296]
[1673250512379,0.13988356,17217.0,17216.0,0.87072296]
[1673250512646,0.13988356,17217.0,17216.0,0.50721496]
[1673250512899,0.13988356,17217.0,17216.0,0.58021496]
[1673250514165,0.0085,17217.0,17216.0,0.19151916]
[1673250514411,0.0085,17217.0,17216.0,0.26451916]
[1673250514662,0.0085,17217.0,17216.0,0.5780684]
[1673250515168,0.0085,17217.0,17216.0,0.5050684]
[1673250515420,0.0085,17217.0,17216.0,0.19151916]
[1673250515672,0.0085,17217.0,17216.0,0.19751916]
[1673250516179,0.7920544,17217.0,17216.0,0.19751916]
[1673250516937,0.7920544,17217.0,17216.0,0.19151916]
[1673250517192,0.7920544,17217.0,17216.0,0.19751916]
[1673250517442,0.35695201,17217.0,17216.0,0.19751916]
[1673250517700,0.7920544,17217.0,17216.0,0.19751916]
[1673250518483,1.05345563,17217.0,17216.0,0.5110684]
[1673250518768,0.61835324,17217.0,17216.0,0.5110684]
[1673250518980,0.61835324,17217.0,17216.0,0.8745764]
[1673250519276,1.05345563,17217.0,17216.0,0.5110684]
[1673250519543,0.90632211,17217.0,17216.0,0.19751916]
[1673250519805,0.90632211,17217.0,17216.0,0.51088746]
[1673250520066,0.6449189,17217.0,17216.0,0.51088746]
[1673250520817,0.6449189,17217.0,17216.0,0.19751916]
[1673250521065,0.43510239,17217.0,17216.0,0.19151916]
[1673250521560,0.44360239,17217.0,17216.0,0.19751916]
[1673250521817,0.23854,17217.0,17216.0,0.19151916]
[1673250522064,0.23854,17217.0,17216.0,0.19751916]
[1673250524153,0.0085,17217.0,17216.0,0.19751916]